bitfinex-derivatives/quotes_SOLF0:USTF0_20241227
["timestamp","ask_amount","ask_price","bid_price","bid_amount"]
[1735330452794,2.6942,185.85,185.79,15.21963267]
[1735330452996,12.52453267,185.88,185.77,4.7559]
[1735330453293,12.52453267,185.88,185.78,3.2]
[1735330453487,2.6949,185.81,185.78,3.2]
[1735330453895,12.52453267,185.88,185.78,3.2]
[1735330454092,2.6944,185.84,185.78,5.8951]
[1735330454287,12.52453267,185.88,185.78,3.2]
[1735330454688,2.6945,185.84,185.78,5.8951]
[1735330454896,12.52453267,185.88,185.78,5.8951]
[1735330455396,2.6948,185.81,185.78,3.2]
[1735330455598,12.52453267,185.85,185.79,3.2]
[1735330456493,2.695,185.8,185.79,3.2]
[1735330461208,2.6952,185.79,185.74,58.6358]
[1735330461502,2.6952,185.79,185.75,3.2]
[1735330462303,2.6949,185.8,185.75,5.8956]
[1735330464098,2.6949,185.8,185.75,2.6956]
[1735330464301,2.6949,185.8,185.76,3.2]
[1735330464602,15.80193267,185.87,185.76,3.2]
[1735330465308,2.6949,185.81,185.76,3.2]
[1735330465807,2.6949,185.81,185.77,3.2]
[1735330466001,2.6951,185.79,185.77,3.2]
[1735330466905,2.6951,185.79,185.78,3.2]
[1735330469001,2.6953,185.78,185.74,63.9603529]
[1735330469301,2.6953,185.78,185.75,3.2]
[1735330469497,2.6955,185.77,185.74,63.9603529]
[1735330469706,2.6955,185.77,185.75,3.2]
[1735330471307,2.6956,185.75,185.74,55.94]
[1735330471510,8.0203529,185.79,185.76,3.2]
[1735330471908,8.0203529,185.81,185.76,3.2]
[1735330473511,2.695,185.8,185.76,5.8955]
[1735330474115,1.5405,185.86,185.76,11.2203529]
[1735330474318,8.0203529,185.85,185.78,8.0203529]
[1735330476515,2.6946,185.82,185.78,10.7155529]
[1735330478007,3.2774,185.87,185.78,8.0203529]
[1735330478313,3.2774,185.87,185.81,2.6947]
[1735330478314,8.0203529,185.87,185.81,2.6947]
[1735330478616,8.0203529,185.85,185.82,3.24]
[1735330478814,2.6944,185.84,185.83,3.24]
[1735330483609,2.6941,185.86,185.83,3.24]
[1735330484221,8.0203529,185.85,185.76,7.46821096]
[1735330484523,8.0203529,185.83,185.77,11.2603529]
[1735330484914,8.0203529,185.83,185.76,7.46821096]
[1735330485214,8.0203529,185.83,185.77,3.24]
[1735330486118,2.695,185.8,185.77,3.24]
[1735330486717,2.695,185.8,185.76,8.0203529]
[1735330487016,2.6949,185.81,185.74,55.94]
[1735330487218,8.0203529,185.83,185.75,11.2603529]
[1735330487415,8.0203529,185.81,185.75,11.2603529]
[1735330487615,8.0203529,185.83,185.75,11.2603529]
[1735330488823,8.0203529,185.81,185.75,11.2603529]
[1735330489416,2.6951,185.79,185.75,11.2603529]
[1735330490320,2.6951,185.79,185.75,8.0203529]
[1735330490516,8.0203529,185.79,185.72,29.87284385]
[1735330490721,2.6958,185.75,185.73,3.24]
[1735330491113,8.0203529,185.79,185.73,3.24]
[1735330491318,2.6953,185.78,185.74,8.0203529]
[1735330492521,2.6953,185.78,185.73,13.9562529]
[1735330492726,2.6953,185.78,185.73,5.9359]
[1735330492921,2.6953,185.78,185.74,8.0203529]
[1735330502622,2.6953,185.78,185.76,8.0203529]
[1735330503426,2.6947,185.82,185.76,8.0203529]
[1735330503622,1.5532,185.89,185.78,8.0203529]
[1735330503828,8.0203529,185.86,185.8,8.0203529]
[1735330504028,2.6945,185.84,185.81,3.24]
[1735330505124,2.6945,185.83,185.81,3.24]
[1735330505525,8.0203529,185.84,185.81,3.24]
[1735330505725,10.7149529,185.82,185.81,3.24]
[1735330505928,8.0203529,185.82,185.8,3.24]
[1735330506228,2.6958,185.74,185.72,7.49697181]
[1735330506522,2.6958,185.74,185.73,3.24]
[1735330509131,2.6957,185.75,185.73,3.24]
[1735330509632,8.0203529,185.79,185.73,3.24]
[1735330510132,2.6955,185.76,185.73,3.24]
[1735330511434,8.0203529,185.79,185.73,3.24]
[1735330511631,8.0203529,185.75,185.73,3.24]
[1735330511826,8.0203529,185.75,185.68,10.7169529]
[1735330512031,8.0203529,185.77,185.72,3.24]
[1735330513038,8.0203529,185.77,185.73,3.24]
[1735330513635,2.6958,185.74,185.73,3.24]
[1735330514831,2.696,185.73,185.68,2.6966]
[1735330515030,8.0203529,185.75,185.68,3.24]
[1735330515841,2.696,185.73,185.68,3.24]
[1735330516033,8.0203529,185.75,185.68,3.24]
[1735330516437,8.0203529,185.75,185.67,8.0203529]
[1735330516641,8.0203529,185.75,185.68,3.24]
[1735330516936,2.6964,185.71,185.68,3.24]
[1735330518133,8.0203529,185.73,185.67,8.0203529]
[1735330518441,3.1586,185.8,185.68,3.24]
[1735330518442,2.6967,185.69,185.68,3.24]
[1735330522038,2.6961,185.73,185.68,3.24]
[1735330522240,8.0203529,185.73,185.68,3.24]
[1735330523341,2.6963,185.71,185.68,3.24]
[1735330523842,10.7163529,185.73,185.68,5.9365]
[1735330524140,3.1586,185.8,185.68,11.2603529]
[1735330524141,8.0203529,185.75,185.68,11.2603529]
[1735330524737,2.6956,185.76,185.71,2.6962]
[1735330524939,1.6619,185.81,185.69,1.5658]
[1735330525138,8.0203529,185.77,185.71,8.0203529]
[1735330525438,10.7157529,185.77,185.72,2.696]
[1735330525638,1.6619,185.81,185.73,11.2603529]
[1735330525842,8.0203529,185.8,185.75,8.0203529]
[1735330526043,2.6949,185.8,185.75,10.7159529]
[1735330526344,8.0203529,185.82,185.75,8.0203529]
[1735330526639,10.7151529,185.82,185.76,2.6954]
[1735330527440,2.6948,185.81,185.76,2.6954]
[1735330527641,8.0203529,185.82,185.76,2.6954]
[1735330528147,2.6948,185.81,185.76,2.6954]
[1735330528539,2.6948,185.81,185.77,8.0203529]
[1735330528739,2.6948,185.81,185.78,3.24]
[1735330528943,2.6946,185.83,185.78,3.24]
[1735330529345,8.0203529,185.84,185.78,3.24]
[1735330529945,2.6943,185.85,185.8,2.6949]
[1735330530245,8.0203529,185.85,185.79,8.0203529]
[1735330531348,8.0203529,185.83,185.78,3.24]
[1735330532352,2.6949,185.81,185.78,3.24]
[1735330535147,2.6949,185.81,185.78,11.2603529]
[1735330536548,2.694,185.87,185.79,2.695]
[1735330536745,51.06018362,185.9,185.8,8.0203529]
[1735330536946,8.0203529,185.88,185.8,8.0203529]
[1735330538249,2.6941,185.86,185.82,8.0203529]
[1735330538448,2.6941,185.86,185.83,3.24]
[1735330539442,1.5645,185.91,185.83,3.24]
[1735330539443,2.6939,185.87,185.83,3.24]
[1735330539648,8.0203529,185.9,185.83,3.24]
[1735330540250,2.694,185.87,185.83,3.24]
[1735330540547,8.0203529,185.88,185.83,3.24]
[1735330540753,2.6942,185.85,185.83,3.24]
[1735330540955,1.6544,185.93,185.83,3.24]
[1735330540956,8.0203529,185.9,185.83,3.24]
[1735330541248,1.6544,185.93,185.84,8.0203529]
[1735330541450,8.0203529,185.92,185.84,8.0203529]
[1735330541650,1.6464,185.96,185.86,8.0203529]
[1735330541857,2.6935,185.9,185.86,10.7143529]
[1735330543347,8.0203529,185.93,185.83,3.24]
[1735330543348,2.6931,185.93,185.88,10.7140529]
[1735330543550,2.6931,185.93,185.89,3.24]
[1735330544055,2.6931,185.93,185.9,3.24]
[1735330544553,2.6933,185.91,185.9,3.24]
[1735330556760,1.5745,185.98,185.9,11.2603529]
[1735330557064,1.5745,185.98,185.92,8.0203529]
[1735330558460,2.6929,185.94,185.92,8.0203529]
[1735330560461,2.6928,185.95,185.92,8.0203529]
[1735330560654,8.0203529,186.02,185.94,8.0203529]
[1735330560858,8.0203529,186.02,185.96,8.0203529]
[1735330561158,1.6393,186.05,185.97,3.24]
[1735330561458,8.0203529,186.05,185.98,8.0203529]
[1735330562152,8.0203529,186.05,185.97,3.24]
[1735330562153,8.0203529,186.03,185.97,5.9323]
[1735330562361,3.243,186.1,185.97,3.24]
[1735330562663,8.0203529,186.05,185.98,8.0203529]
[1735330563164,2.6916,186.03,185.98,10.7126529]
[1735330563360,8.0203529,186.07,186.0,8.0203529]
[1735330563762,8.0203529,186.1,186.04,8.0203529]
[1735330564066,8.0203529,186.1,186.05,3.24]
[1735330564367,8.0203529,186.1,186.02,8.0203529]
[1735330564368,2.6912,186.06,186.02,8.0203529]
[1735330564568,2.6912,186.06,186.03,3.24]
[1735330565362,8.0203529,186.1,186.03,3.24]
[1735330565564,2.6909,186.08,186.03,3.24]
[1735330566465,2.6909,186.08,186.03,5.9316]
[1735330567163,2.6909,186.08,186.04,8.0203529]
[1735330568064,2.6907,186.1,186.04,8.0203529]
[1735330568266,8.0203529,186.1,186.03,3.24]
[1735330568465,8.0203529,186.1,186.03,11.2603529]
[1735330569369,8.0203529,186.08,185.98,4.8686]
[1735330569667,8.0203529,186.06,186.0,8.0203529]
[1735330569869,2.6916,186.03,186.0,8.0203529]
[1735330571467,8.0203529,186.06,186.01,3.22]
[1735330571671,2.6917,186.02,186.01,3.22]
[1735330572067,8.0203529,186.06,186.01,3.22]
[1735330572269,2.6916,186.03,186.01,3.22]
[1735330573178,8.0203529,186.04,186.01,3.22]
[1735330573472,2.6916,186.03,186.01,3.22]
[1735330573966,8.0203529,186.02,185.94,8.0203529]
[1735330574166,8.0203529,185.97,185.95,3.22]
[1735330574366,8.0203529,185.97,185.96,3.22]
[1735330574772,10.7128529,185.97,185.96,3.22]
[1735330575073,8.0203529,185.97,185.94,3.22]
[1735330575279,2.6933,185.92,185.9,85.67766066]
[1735330575576,2.6933,185.92,185.91,3.22]
[1735330575577,10.7136529,185.92,185.91,3.22]
[1735330577076,2.6933,185.92,185.91,3.22]
[1735330578784,8.0203529,185.93,185.83,8.0203529]
[1735330578983,8.0203529,185.89,185.84,3.22]
[1735330579279,8.0203529,185.87,185.85,3.22]
[1735330579486,2.6941,185.86,185.85,3.22]
[1735330580086,2.6943,185.85,185.8,1.5543]
[1735330580390,8.0203529,185.87,185.81,11.2403529]
[1735330580986,8.0203529,185.87,185.82,2.6946]
[1735330581882,10.7143529,185.87,185.81,13.9351529]
[1735330582078,8.0203529,185.87,185.81,3.22]
[1735330582484,10.7143529,185.87,185.81,11.2403529]
[1735330582683,8.0203529,185.87,185.81,11.2403529]
[1735330582986,2.6942,185.85,185.81,3.22]
[1735330583586,2.6942,185.85,185.8,1.5543]
[1735330583789,2.6942,185.85,185.82,3.22]
[1735330584390,2.6942,185.85,185.8,1.5543]
[1735330584590,2.6942,185.85,185.81,3.22]
[1735330584789,8.0203529,185.87,185.81,3.22]
[1735330584993,2.6941,185.86,185.81,3.22]
[1735330585284,8.0203529,185.85,185.81,3.22]
[1735330585690,2.6944,185.84,185.81,3.22]
[1735330586091,8.0203529,185.83,185.77,55.96]
[1735330586291,2.6948,185.81,185.78,3.22]
[1735330586482,8.0203529,185.81,185.78,3.22]
[1735330587087,10.7151529,185.81,185.78,3.22]
[1735330588289,8.0203529,185.81,185.78,3.22]
[1735330588488,2.6949,185.8,185.78,3.22]
[1735330589591,2.6952,185.78,185.73,8.0203529]
[1735330589790,8.0203529,185.77,185.74,3.22]
[1735330590896,8.0203529,185.77,185.71,8.0203529]
[1735330591192,8.0203529,185.77,185.72,3.22]
[1735330591491,2.6955,185.76,185.72,3.22]
[1735330592084,8.0203529,185.77,185.73,3.22]
[1735330592287,10.7157529,185.77,185.73,3.22]
[1735330592889,10.7157529,185.77,185.74,3.22]
[1735330593891,8.0203529,185.77,185.71,8.0203529]
[1735330594095,8.0203529,185.77,185.72,3.22]
[1735330594483,10.7161529,185.75,185.72,3.22]
[1735330594692,8.0203529,185.75,185.72,3.22]
[1735330595092,2.6959,185.73,185.72,3.22]
[1735330596399,2.6956,185.76,185.72,3.22]
[1735330596792,2.6956,185.76,185.72,5.9161]
[1735330596992,8.0203529,185.79,185.72,3.22]
[1735330598501,2.6952,185.78,185.73,2.6959]
[1735330598694,8.0203529,185.79,185.72,3.22]
[1735330598894,8.0203529,185.81,185.73,8.0203529]
[1735330599093,2.6949,185.8,185.75,2.6955]
[1735330599498,8.0203529,185.81,185.75,2.6955]
[1735330599696,12.53622982,185.82,185.74,2.6958]
[1735330599895,12.53622982,185.82,185.69,12.53622982]
[1735330600090,2.6952,185.78,185.7,3.22]
[1735330601303,2.6951,185.79,185.74,2.6958]
[1735330601502,2.6951,185.79,185.7,3.22]
[1735330601503,12.53622982,185.85,185.75,3.22]
[1735330602098,2.6949,185.81,185.76,2.6954]
[1735330602404,12.53622982,185.85,185.75,3.22]
[1735330603403,2.6951,185.79,185.75,3.22]
[1735330604504,2.6951,185.79,185.75,5.9156]
[1735330605403,2.6953,185.78,185.75,3.22]
[1735330605603,12.53622982,185.82,185.76,3.22]
[1735330605803,12.53622982,185.82,185.77,3.22]
[1735330606001,2.6952,185.78,185.77,3.22]
[1735330607405,2.6954,185.77,185.73,2.6959]
[1735330607597,2.6954,185.77,185.74,3.22]
[1735330609807,2.6954,185.77,185.73,2.6959]
[1735330610004,2.6954,185.77,185.74,3.22]
[1735330611708,12.53622982,185.82,185.74,3.22]
[1735330611906,2.6956,185.76,185.74,3.22]
[1735330615713,2.6954,185.77,185.74,3.22]
[1735330617416,2.6955,185.76,185.74,3.22]
[1735330618018,12.53622982,185.79,185.7,7.42441516]
[1735330618314,12.53622982,185.85,185.71,3.22]
[1735330618315,12.53622982,185.76,185.71,3.22]
[1735330618912,2.6961,185.72,185.71,3.22]
[1735330619816,12.53622982,185.76,185.67,8.98121516]
[1735330620011,12.53622982,185.76,185.68,3.22]
[1735330620406,12.53622982,185.73,185.69,3.22]
[1735330620610,12.53622982,185.73,185.7,3.22]
[1735330621717,8.03023746,185.71,185.7,3.22]
[1735330622214,8.03023746,185.71,185.68,3.22]
[1735330622417,8.03023746,185.69,185.68,3.22]
[1735330622814,10.72673746,185.69,185.68,3.22]
[1735330625920,2.697,185.66,185.65,55.98]
[1735330626214,8.03023746,185.67,185.61,29.69766066]
[1735330626420,2.6977,185.61,185.6,29.69766066]
[1735330626621,2.6977,185.61,185.6,32.91766066]
[1735330627215,8.03023746,185.65,185.6,32.91766066]
[1735330627415,8.03023746,185.63,185.61,3.22]
[1735330627615,8.03023746,185.63,185.6,29.69766066]
[1735330627817,3.22,185.77,185.6,3.22]
[1735330627818,10.72793746,185.61,185.6,3.22]
[1735330628018,5.3914,185.75,185.6,3.22]
[1735330628315,8.03023746,185.68,185.61,8.03023746]
[1735330628718,2.6971,185.66,185.61,10.72783746]
[1735330629521,2.6971,185.65,185.61,8.03023746]
[1735330629721,2.6971,185.65,185.61,9.69793746]
[1735330630624,2.6972,185.64,185.61,1.6677]
[1735330631119,2.6972,185.64,185.61,9.69793746]
[1735330631922,2.6972,185.64,185.61,1.6677]
[1735330632322,2.6975,185.62,185.61,1.6677]
[1735330632524,8.03023746,185.63,185.61,3.18]
[1735330632723,8.03023746,185.63,185.62,3.18]
[1735330633224,2.6979,185.6,185.56,12.32913746]
[1735330633426,2.6979,185.6,185.57,3.18]
[1735330633819,2.6979,185.6,185.58,3.18]
[1735330634021,8.03023746,185.63,185.58,11.21023746]
[1735330634724,8.03023746,185.63,185.59,3.18]
[1735330635119,2.6976,185.62,185.59,3.18]
[1735330635424,8.03023746,185.63,185.59,3.18]
[1735330635620,2.6978,185.61,185.59,3.18]
[1735330637224,10.72773746,185.63,185.59,3.18]
[1735330638326,10.72773746,185.63,185.59,5.878]
[1735330638927,10.72773746,185.63,185.59,3.18]
[1735330641628,2.6975,185.63,185.59,5.8779]
[1735330641926,10.72743746,185.65,185.59,3.18]
[1735330643426,10.72743746,185.65,185.6,2.6978]
[1735330643623,2.6973,185.64,185.61,3.18]
[1735330645033,8.03023746,185.65,185.62,3.18]
[1735330645232,8.03023746,185.65,185.63,3.18]
[1735330645436,2.6972,185.64,185.63,3.18]
[1735330649043,8.03023746,185.65,185.56,1.6005]
[1735330649242,8.03023746,185.61,185.57,3.18]
[1735330650239,2.6981,185.59,185.57,3.18]
[1735330651340,2.6981,185.58,185.57,3.18]
[1735330651741,4.8201,185.73,185.57,3.18]
[1735330651943,2.6977,185.61,185.57,3.18]
[1735330652236,8.03023746,185.62,185.58,3.18]
[1735330652444,2.698,185.6,185.58,3.18]
[1735330652943,2.698,185.6,185.59,3.18]
[1735330656641,3.18,185.72,185.53,29.69766066]
[1735330656841,8.03023746,185.58,185.54,3.18]
[1735330657845,3.18,185.72,185.54,3.18]
[1735330657846,8.03023746,185.56,185.54,3.18]
[1735330658239,8.03023746,185.56,185.51,56.04]
[1735330658445,3.2,185.67,185.53,3.2]
[1735330658649,4.8279,185.66,185.53,3.2]
[1735330658842,8.03023746,185.54,185.53,3.2]
[1735330659443,10.72893746,185.54,185.53,3.2]
[1735330660749,2.6987,185.54,185.53,3.2]
[1735330660945,10.72863746,185.57,185.53,3.2]
[1735330661146,8.03023746,185.57,185.53,3.2]
[1735330661347,8.03023746,185.59,185.53,3.2]
[1735330662146,2.6983,185.57,185.53,3.2]
[1735330662549,8.03023746,185.6,185.54,8.03023746]
[1735330663246,2.698,185.59,185.54,10.72883746]
[1735330663446,8.03023746,185.62,185.54,8.03023746]
[1735330664055,2.6978,185.6,185.56,8.03023746]
[1735330664253,8.03023746,185.64,185.56,8.03023746]
[1735330664746,2.6976,185.62,185.57,2.6982]
[1735330664952,8.03023746,185.64,185.58,3.2]
[1735330665245,2.6976,185.61,185.58,3.2]
[1735330665747,1.578,185.66,185.58,3.2]
[1735330665946,2.6973,185.63,185.58,11.23023746]
[1735330666141,3.1577,185.74,185.6,8.03023746]
[1735330666350,8.03023746,185.67,185.61,3.2]
[1735330666554,8.03023746,185.67,185.62,3.2]
[1735330667448,2.6969,185.65,185.62,3.2]
[1735330667944,3.1577,185.74,185.62,3.2]
[1735330667945,8.03023746,185.7,185.62,11.23023746]
[1735330668149,8.03023746,185.7,185.62,3.2]
[1735330668451,8.03023746,185.7,185.63,8.03023746]
[1735330668852,2.6964,185.68,185.63,10.72733746]
[1735330669052,8.03023746,185.7,185.63,9.55623746]
[1735330669454,2.6965,185.68,185.63,9.55623746]
[1735330671160,2.6965,185.68,185.63,12.25333746]
[1735330671752,2.6962,185.7,185.65,8.03023746]
[1735330672250,2.6963,185.69,185.65,8.03023746]
[1735330673258,1.5379,185.74,185.65,8.03023746]
[1735330673458,8.03023746,185.72,185.65,8.03023746]
[1735330673854,8.03023746,185.7,185.66,3.2]
[1735330675458,2.6966,185.67,185.66,3.2]
[1735330676359,2.6966,185.67,185.63,3.052]
[1735330676563,2.6966,185.67,185.64,3.2]
[1735330678856,1.5379,185.74,185.66,8.03023746]
[1735330679061,8.03023746,185.73,185.66,8.03023746]
[1735330679964,2.6961,185.71,185.66,8.03023746]
[1735330680161,2.6961,185.71,185.64,3.2]
[1735330680458,8.03023746,185.73,185.66,8.03023746]
[1735330680653,8.03023746,185.71,185.65,8.03023746]
[1735330680857,8.03023746,185.71,185.66,3.2]
[1735330681061,8.03023746,185.68,185.59,29.69766066]
[1735330681254,8.03023746,185.7,185.63,8.03023746]
[1735330681661,8.03023746,185.68,185.63,8.03023746]
[1735330682159,2.6968,185.66,185.63,8.03023746]
[1735330683064,2.6969,185.65,185.63,8.03023746]
[1735330683965,2.6969,185.65,185.61,2.6974]
[1735330684463,12.54980493,185.72,185.6,6.4089]
[1735330684659,2.6966,185.67,185.62,12.54980493]
[1735330684865,1.6934,185.73,185.62,12.54980493]
[1735330685365,2.6966,185.67,185.63,2.697]
[1735330685568,2.6966,185.67,185.62,12.54980493]
[1735330685768,12.54980493,185.72,185.6,3.2089]
[1735330685966,12.54980493,185.72,185.63,3.2]
[1735330688568,2.6962,185.7,185.63,3.2]
[1735330688766,12.54980493,185.72,185.63,3.2]
[1735330689667,2.697,185.65,185.63,3.2]
[1735330690970,12.54980493,185.72,185.59,12.54980493]
[1735330691166,1.6934,185.73,185.56,15.66980493]
[1735330691368,14.24320493,185.73,185.59,12.54980493]
[1735330691570,2.6969,185.65,185.6,2.6974]
[1735330694266,2.6969,185.65,185.59,12.54980493]
[1735330694471,2.6968,185.66,185.61,2.6973]
[1735330694772,2.6968,185.66,185.62,3.22]
[1735330696076,2.6968,185.66,185.62,15.76980493]
[1735330698180,14.24320493,185.73,185.63,2.697]
[1735330698181,2.6964,185.68,185.63,2.697]
[1735330698476,2.6964,185.68,185.62,15.76980493]
[1735330698778,2.6964,185.68,185.63,1.6452]
[1735330698980,2.6963,185.69,185.64,2.6969]
[1735330699676,1.5379,185.74,185.65,15.24650493]
[1735330699977,1.615,185.78,185.65,12.54980493]
[1735330701677,2.6959,185.72,185.67,2.6965]
[1735330701876,2.6959,185.72,185.68,3.22]
[1735330702181,2.6961,185.7,185.69,3.22]
[1735330706380,8.02870605,185.71,185.68,3.22]
[1735330706582,8.02870605,185.69,185.68,3.22]
[1735330706983,10.72490605,185.69,185.68,3.22]
[1735330707180,8.02870605,185.69,185.64,3.22]
[1735330707383,2.6973,185.62,185.61,7.42441516]
[1735330707576,2.6973,185.62,185.61,10.64441516]
[1735330707776,2.6973,185.62,185.61,3.22]
[1735330715189,8.02870605,185.67,185.61,3.22]
[1735330715390,8.02870605,185.68,185.61,3.22]
[1735330715785,8.02870605,185.68,185.61,11.24870605]
[1735330717592,2.697,185.64,185.61,11.24870605]
[1735330718890,2.6968,185.65,185.61,11.24870605]
[1735330719090,8.02870605,185.7,185.63,8.02870605]
[1735330719490,2.6964,185.68,185.63,2.6971]
[1735330719691,8.02870605,185.74,185.67,8.02870605]
[1735330719892,8.02870605,185.74,185.68,3.2]
[1735330720089,8.02870605,185.76,185.69,8.02870605]
[1735330720489,3.2451,185.77,185.69,8.02870605]
[1735330720694,8.02870605,185.76,185.69,8.02870605]
[1735330720895,2.696,185.71,185.69,8.02870605]
[1735330721491,8.02870605,185.76,185.69,8.02870605]
[1735330722491,2.6955,185.74,185.69,8.02870605]
[1735330723488,8.02870605,185.76,185.69,8.02870605]
[1735330723690,2.6957,185.73,185.69,8.02870605]
[1735330724695,2.6955,185.74,185.71,8.02870605]
[1735330725590,8.02870605,185.79,185.71,8.02870605]
[1735330725790,8.02870605,185.79,185.73,8.02870605]
[1735330725995,8.02870605,185.79,185.74,3.2]
[1735330726798,2.6952,185.77,185.74,3.2]
[1735330727291,8.02870605,185.81,185.74,3.2]
[1735330728797,2.6953,185.76,185.74,3.2]
[1735330730199,8.02870605,185.77,185.7,1.668]
[1735330730501,8.02870605,185.77,185.71,11.22870605]
[1735330731195,8.02870605,185.79,185.71,11.22870605]
[1735330731393,2.6951,185.77,185.71,11.22870605]
[1735330731597,8.02870605,185.79,185.71,11.22870605]
[1735330731799,8.02870605,185.81,185.73,8.02870605]
[1735330731992,8.02870605,185.83,185.77,8.02870605]
[1735330732198,8.02870605,185.83,185.78,3.2]
[1735330732601,2.6948,185.79,185.78,3.2]
[1735330733606,2.6948,185.79,185.72,1.6795]
[1735330733607,8.02870605,185.8,185.73,8.02870605]
[1735330733802,8.02870605,185.8,185.74,3.2]
[1735330735008,8.02870605,185.82,185.75,8.02870605]
[1735330735912,8.02870605,185.85,185.77,8.02870605]
[1735330736811,2.6947,185.8,185.77,8.02870605]
[1735330738112,8.02870605,185.85,185.77,8.02870605]
[1735330738313,2.6943,185.83,185.79,8.02870605]
[1735330738508,2.6943,185.83,185.8,3.2]
[1735330739208,8.02870605,185.87,185.8,3.2]
[1735330739411,2.6944,185.82,185.8,3.2]
[1735330739812,8.02870605,185.87,185.8,3.2]
[1735330740006,2.6942,185.84,185.8,3.2]
[1735330740714,8.02870605,185.85,185.8,3.2]
[1735330741110,2.6945,185.81,185.8,3.2]
[1735330746019,8.02870605,185.81,185.72,1.6795]
[1735330746215,8.02870605,185.81,185.75,8.02870605]
[1735330746616,8.02870605,185.81,185.76,3.2]
[1735330747017,2.6952,185.77,185.76,3.2]
[1735330747217,8.02870605,185.81,185.76,3.2]
[1735330747417,8.02870605,185.79,185.76,3.2]
[1735330747614,8.02870605,185.79,185.71,9.64860605]
[1735330747826,8.02870605,185.79,185.72,3.18]
[1735330748123,8.02870605,185.75,185.73,3.18]
[1735330748323,8.02870605,185.77,185.73,3.18]
[1735330749417,2.6955,185.74,185.73,3.18]
[1735330749615,8.02870605,185.77,185.73,3.18]
[1735330750719,8.02870605,185.77,185.69,56.04]
[1735330750720,8.02870605,185.77,185.74,3.18]
[1735330751213,2.6954,185.75,185.74,3.18]
[1735330752023,8.02870605,185.77,185.7,8.02870605]
[1735330752320,2.6958,185.73,185.71,3.18]
[1735330754320,8.02870605,185.79,185.72,8.02870605]
[1735330754822,2.6952,185.77,185.72,10.72450605]
[1735330755017,2.6952,185.77,185.74,8.02870605]
[1735330755722,8.02870605,185.81,185.74,8.02870605]
[1735330755922,2.6953,185.76,185.74,8.02870605]
[1735330757326,8.02870605,185.81,185.74,8.02870605]
[1735330758021,8.02870605,185.79,185.71,3.18]
[1735330758221,8.02870605,185.79,185.72,8.02870605]
[1735330758421,2.6956,185.74,185.72,8.02870605]
[1735330759127,8.02870605,185.81,185.72,8.02870605]
[1735330759425,8.02870605,185.81,185.74,8.02870605]
[1735330759617,8.02870605,185.83,185.76,8.02870605]
[1735330759817,8.02870605,185.83,185.77,3.18]
[1735330760019,1.5646,185.84,185.78,8.02870605]
[1735330760417,23.71888272,185.89,185.82,8.02870605]
[1735330760619,23.71888272,185.89,185.83,3.18]
[1735330761017,22.05788272,185.89,185.83,3.18]
[1735330761620,8.02870605,185.9,185.83,3.18]
[1735330762125,1.6504,185.92,185.83,3.18]
[1735330762325,8.02870605,185.9,185.83,3.18]
[1735330763528,2.6939,185.86,185.83,3.18]
[1735330763729,8.02870605,185.88,185.83,3.18]
[1735330764130,2.6937,185.87,185.83,3.18]
[1735330764331,8.02870605,185.88,185.83,3.18]
[1735330764732,2.6943,185.83,185.8,8.02870605]
[1735330764926,2.6943,185.83,185.81,3.18]
[1735330765325,2.6941,185.84,185.81,3.18]
[1735330765724,8.02870605,185.88,185.81,3.18]
[1735330765929,2.6943,185.83,185.81,3.18]
[1735330766129,1.6504,185.92,185.81,3.18]
[1735330766334,8.02870605,185.87,185.81,3.18]
[1735330766735,8.02870605,185.85,185.81,3.18]
[1735330767036,8.02870605,185.83,185.82,3.18]